fUST/lending_fUST_20250618
["ID","MTS","AMOUNT","RATE_DAILY","PERIOD"]
[366329829,1750192242275,-460.0,0.00022794,6]
[366329831,1750192242285,-460.0,0.00022794,6]
[366329833,1750192242295,-609.02,0.00022794,6]
[366329835,1750192242304,-460.0,0.00022794,6]
[366329837,1750192242313,-225.3,0.00022794,6]
[366329839,1750192242322,-460.0,0.00022794,6]
[366329841,1750192242331,-2043.48,0.00022794,6]
[366329843,1750192242341,-692.32,0.00022794,6]
[366329845,1750192242350,-212.59418256,0.00022866,8]
[366329847,1750192242359,-460.0,0.00022904,6]
[366329849,1750192242369,-460.0,0.00022904,6]
[366329851,1750192242378,-460.0,0.00022904,6]
[366329853,1750192242388,-658.96,0.00022904,6]
[366329855,1750192242398,-460.0,0.00022904,6]
[366329857,1750192242408,-460.0,0.00022904,6]
[366329859,1750192242418,-874.44,0.00022904,6]
[366329861,1750192242427,-648.72,0.00022904,6]
[366329863,1750192242436,-460.0,0.00022904,6]
[366329865,1750192242446,-460.0,0.00022904,6]
[366329867,1750192242455,-460.0,0.00022904,6]
[366329869,1750192242465,-460.0,0.00022904,6]
[366329871,1750192242474,-2043.48,0.00022904,6]
[366329873,1750192242484,-692.32,0.00022904,6]
[366329875,1750192242493,-225.0,0.00022967,2]
[366329877,1750192242504,-168.0,0.00022991,2]
[366329879,1750192242513,-160.0,0.00023,7]
[366329881,1750192242523,-212.59418256,0.00023003,8]
[366329883,1750192242533,-460.0,0.00023013,6]
[366329885,1750192242542,-460.0,0.00023013,6]
[366329887,1750192242552,-307.82,0.00023013,6]
[366329890,1750192242561,-658.96,0.00023013,6]
[366329892,1750192242571,-441.84,0.00023013,6]
[366329894,1750192242580,-460.0,0.00023013,6]
[366329896,1750192242590,-874.44,0.00023013,6]
[366329898,1750192242600,-648.72,0.00023013,6]
[366329900,1750192242609,-460.0,0.00023013,6]
[366329902,1750192242618,-460.0,0.00023013,6]
[366329904,1750192242628,-460.0,0.00023013,6]
[366329906,1750192242638,-460.0,0.00023013,6]
[366329908,1750192242648,-2043.48,0.00023013,6]
[366329910,1750192242657,-692.32,0.00023013,6]
[366329912,1750192242667,-500.0,0.00023056,2]
[366329914,1750192242676,-371.0,0.00023087,2]
[366329916,1750192242686,-168.0,0.00023094,2]
[366329918,1750192242695,-193.9,0.00023123,6]
[366329920,1750192242705,-460.0,0.00023123,6]
[366329922,1750192242714,-658.96,0.00023123,6]
[366329924,1750192242725,-460.0,0.00023123,6]
[366329926,1750192242736,-874.44,0.00023123,6]
[366329928,1750192242745,-648.72,0.00023123,6]
[366329930,1750192242755,-460.0,0.00023123,6]
[366329932,1750192242764,-460.0,0.00023123,6]
[366329934,1750192242774,-460.0,0.00023123,6]
[366329936,1750192242783,-527.44215602,0.00023123,6]
[366329938,1750192242793,-2043.48,0.00023123,6]
[366329940,1750192242802,-692.32,0.00023123,6]
[366329942,1750192242812,-212.59418256,0.00023141,8]
[366329944,1750192242822,-424.62582665,0.00023188,2]
[366329945,1750192242831,-835.82910252,0.00023188,2]
[366329948,1750192242841,-229.94211981,0.00023188,2]
[366329950,1750192242851,-460.0,0.00023232,6]
[366329951,1750192242860,-658.96,0.00023232,6]
[366329953,1750192242870,-460.0,0.00023232,6]
[366329955,1750192242879,-874.44,0.00023232,6]
[366329957,1750192242888,-648.72,0.00023232,6]
[366329959,1750192242898,-460.0,0.00023232,6]
[366329961,1750192242907,-460.0,0.00023232,6]
[366329963,1750192242917,-460.0,0.00023232,6]
[366329965,1750192242927,-2043.48,0.00023232,6]
[366329967,1750192242938,-692.32,0.00023232,6]
[366329969,1750192242947,-365.4795681,0.00023233,2]
[366329971,1750192242957,-365.4795681,0.00023233,2]
[366329973,1750192242967,-656.2724451,0.00023233,2]
[366329975,1750192242976,-212.59418256,0.00023279,8]
[366329977,1750192242986,-2615.45,0.000233,7]
[366329980,1750192242996,-460.0,0.00023342,6]
[366329982,1750192243006,-658.96,0.00023342,6]
[366329984,1750192243015,-460.0,0.00023342,6]
[366329986,1750192243025,-874.44,0.00023342,6]
[366329987,1750192243034,-648.72,0.00023342,6]
[366329990,1750192243044,-460.0,0.00023342,6]
[366329991,1750192243054,-460.0,0.00023342,6]
[366329993,1750192243064,-460.0,0.00023342,6]
[366329996,1750192243073,-2043.48,0.00023342,6]
[366329997,1750192243084,-692.32,0.00023342,6]
[366329999,1750192243093,-141838.56967316,0.0002335,2]
[366330001,1750192243103,-315.78308288,0.00023373,2]
[366330003,1750192243113,-500.0,0.00023373,2]
[366330005,1750192243122,-500.0,0.00023373,2]
[366330007,1750192243132,-500.0,0.00023373,2]
[366330010,1750192243143,-500.0,0.00023373,2]
[366330011,1750192243153,-500.0,0.00023373,2]
[366330014,1750192243163,-500.0,0.00023373,2]
[366330016,1750192243172,-500.0,0.00023373,2]
[366330017,1750192243181,-500.0,0.00023373,2]
[366330020,1750192243191,-500.0,0.00023373,2]
[366330022,1750192243200,-500.0,0.00023373,2]
[366330024,1750192243210,-600.0,0.00023373,2]
[366330026,1750192243220,-500.0,0.00023373,2]
[366330028,1750192243229,-500.0,0.00023373,2]
[366330030,1750192243239,-500.0,0.00023373,2]
[366330032,1750192243248,-212.59418256,0.00023417,9]
[366330033,1750192243257,-207.4,0.00023433,2]
[366330035,1750192243268,-500.0,0.0002344,2]
[366330038,1750192243277,-161.59258032,0.00023443,2]
[366330040,1750192243287,-460.0,0.00023452,6]
[366330041,1750192243296,-658.96,0.00023452,6]
[366330043,1750192243306,-460.0,0.00023452,6]
[366330045,1750192243316,-874.44,0.00023452,6]
[366330046,1750192243325,-648.72,0.00023452,6]
[366330047,1750192243335,-460.0,0.00023452,6]
[366330048,1750192243345,-460.0,0.00023452,6]
[366330050,1750192243355,-460.0,0.00023452,6]
[366330052,1750192243364,-2043.48,0.00023452,6]
[366330054,1750192243374,-692.32,0.00023452,6]
[366330056,1750192243383,-29387.19787004,0.000235,7]
[366330058,1750192243393,-212.59418256,0.00023555,9]
[366330060,1750192243402,-460.0,0.00023561,6]
[366330062,1750192243412,-658.96,0.00023561,6]
[366330064,1750192243422,-460.0,0.00023561,6]
[366330066,1750192243431,-874.44,0.00023561,6]
[366330069,1750192243441,-648.72,0.00023561,6]
[366330071,1750192243461,-367.35808169,0.00023561,6]
[366330073,1750192243471,-361.83,0.00023561,6]
[366330075,1750192243480,-460.0,0.00023561,6]
[366330077,1750192243490,-2043.48,0.00023561,6]
[366330079,1750192243500,-692.32,0.00023561,6]
[366330081,1750192243509,-500.0,0.00023592,2]
[366330083,1750192243518,-566.87980216,0.00023592,2]
[366330085,1750192243528,-500.0,0.00023592,2]
[366330087,1750192243537,-27219.83,0.000236,7]
[366330093,1750192243692,-460.0,0.00023671,6]
[366330094,1750192243703,-658.96,0.00023671,6]
[366330095,1750192243712,-460.0,0.00023671,6]
[366330096,1750192243723,-874.44,0.00023671,6]
[366330097,1750192243734,-648.72,0.00023671,6]
[366330098,1750192243744,-240.07,0.00023671,6]
[366330099,1750192243754,-2043.48,0.00023671,6]
[366330100,1750192243763,-692.32,0.00023671,6]
[366330101,1750192243775,-5888.0,0.00023678,2]
[366330102,1750192243785,-212.59418256,0.00023693,9]
[366330103,1750192243796,-672.03,0.000237,7]
[366330104,1750192243806,-160.0,0.00023725,2]
[366330105,1750192243817,-500.0,0.00023773,2]
[366330106,1750192243826,-500.0,0.00023773,2]
[366330107,1750192243836,-500.0,0.00023773,2]
[366330109,1750192243846,-369.39,0.00023773,2]
[366330111,1750192243856,-460.0,0.0002378,6]
[366330112,1750192243866,-658.96,0.0002378,6]
[366330113,1750192243876,-460.0,0.0002378,6]
[366330115,1750192243887,-874.44,0.0002378,6]
[366330116,1750192243897,-648.72,0.0002378,6]
[366330117,1750192243907,-2043.48,0.0002378,6]
[366330118,1750192243917,-692.32,0.0002378,6]
[366330119,1750192243927,-51662.92674891,0.000238,2]
[366330120,1750192243937,-142773.76604336,0.000238,3]
[366330121,1750192243947,-420.0,0.00023817,2]
[366330122,1750192243957,-212.59418256,0.00023831,10]
[366330123,1750192243967,-151.0,0.00023849,6]
[366330124,1750192243977,-31932.0,0.0002387,2]
[366330125,1750192243988,-460.0,0.0002389,6]
[366330126,1750192243998,-658.96,0.0002389,6]
[366330127,1750192244008,-571.64898988,0.0002389,6]
[366330128,1750192244018,-874.44,0.0002389,6]
[366330129,1750192244027,-648.72,0.0002389,6]
[366330130,1750192244038,-2043.48,0.0002389,6]
[366330131,1750192244047,-692.32,0.0002389,6]
[366330132,1750192244057,-1000.0,0.00023921,2]
[366330133,1750192244067,-1000.0,0.00023921,2]
[366330134,1750192244077,-500.0,0.00023921,2]
[366330135,1750192244087,-551.40217156,0.00023921,2]
[366330136,1750192244097,-1000.0,0.00023921,2]
[366330137,1750192244106,-1000.0,0.00023921,2]
[366330138,1750192244116,-1003.23448482,0.00023921,2]
[366330139,1750192244125,-1091.1869642,0.00023921,2]
[366330140,1750192244134,-1000.0,0.00023921,2]
[366330141,1750192244143,-612.42713456,0.00023921,2]
[366330142,1750192244153,-1200.0,0.00023921,2]
[366330143,1750192244163,-1004.27480815,0.00023921,2]
[366330144,1750192244172,-500.0,0.00023921,2]
[366330145,1750192244182,-1000.0,0.00023921,2]
[366330146,1750192244192,-212.59418256,0.00023969,10]
[366330147,1750192244201,-336.93180765,0.00024,6]
[366330148,1750192244211,-658.96,0.00024,6]
[366330149,1750192244220,-874.44,0.00024,6]
[366330150,1750192244230,-648.72,0.00024,6]
[366330151,1750192244239,-331.35063543,0.00024,14]
[366330152,1750192244249,-600.0,0.00024,2]
[366330153,1750192244259,-2043.48,0.00024,6]
[366330154,1750192244269,-692.32,0.00024,6]
[366330155,1750192244279,-151.0,0.00024014,7]
[366330156,1750192244288,-500.0,0.00024031,2]
[366330157,1750192244298,-964.514,0.00024088,2]
[366330158,1750192244307,-1086.48,0.000241,2]
[366330159,1750192244316,-212.59418256,0.00024107,10]
[366330160,1750192244326,-658.96,0.00024109,6]
[366330161,1750192244336,-874.44,0.00024109,6]
[366330162,1750192244345,-648.72,0.00024109,6]
[366330163,1750192244357,-2043.48,0.00024109,6]
[366330164,1750192244367,-692.32,0.00024109,6]
[366330165,1750192244377,-1000.0,0.0002414,2]
[366330166,1750192244386,-1022.26634147,0.0002414,2]
[366330167,1750192244396,-2816.68661021,0.00024153,2]
[366330168,1750192244405,-151.0,0.00024178,7]
[366330169,1750192244414,-658.96,0.00024219,6]
[366330170,1750192244424,-874.44,0.00024219,6]
[366330171,1750192244434,-648.72,0.00024219,6]
[366330172,1750192244443,-2043.48,0.00024219,6]
[366330173,1750192244453,-692.32,0.00024219,6]
[366330174,1750192244462,-225.0,0.00024224,7]
[366330175,1750192244472,-212.59418256,0.00024245,10]
[366330176,1750192244482,-500.0,0.00024289,2]
[366330177,1750192244491,-1000.0,0.00024321,2]
[366330178,1750192244500,-500.0,0.00024321,2]
[366330179,1750192244510,-1000.0,0.00024321,2]
[366330180,1750192244519,-658.96,0.00024328,6]
[366330181,1750192244529,-874.44,0.00024328,6]
[366330182,1750192244538,-648.72,0.00024328,6]
[366330183,1750192244547,-2043.48,0.00024328,6]
[366330184,1750192244556,-692.32,0.00024328,6]
[366330186,1750192244566,-151.0,0.00024343,7]
[366330188,1750192244575,-212.59418256,0.00024383,11]
[366330190,1750192244584,-406.0,0.00024394,2]
[366330192,1750192244594,-2615.45,0.000244,7]
[366330194,1750192244603,-2205.89,0.00024423,2]
[366330196,1750192244613,-659.16709945,0.00024438,6]
[366330198,1750192244622,-874.62,0.00024438,6]
[366330200,1750192244631,-648.8,0.00024438,6]
[366330202,1750192244640,-2043.60229686,0.00024438,6]
[366330204,1750192244649,-692.38,0.00024438,6]
[366330206,1750192244658,-1028.37945555,0.00024468,2]
[366330208,1750192244668,-1500.0,0.00024468,2]
[366330210,1750192244677,-1500.0,0.00024468,2]
[366330212,1750192244687,-1500.0,0.00024468,2]
[366330214,1750192244696,-510.02014759,0.00024468,2]
[366330216,1750192244705,-1800.0,0.00024468,2]
[366330218,1750192244715,-1500.0,0.00024468,2]
[366330220,1750192244724,-716.260681,0.000245,3]
[366330222,1750192244737,-1000.0,0.000245,2]
[366330224,1750192244746,-151.0,0.00024507,7]
[366330226,1750192244755,-212.59418256,0.00024521,11]
[366330228,1750192244764,-19200.78707722,0.0002465,2]
[366330230,1750192244775,-200.0,0.00024657,6]
[366330232,1750192244785,-209.12148944,0.00024657,6]
[366330234,1750192244794,-380.0,0.00024658,2]
[366330236,1750192244805,-212.59418256,0.00024659,11]
[366330238,1750192244815,-151.0,0.00024671,7]
[366330240,1750192244824,-837.59613405,0.00024688,2]
[366330242,1750192244832,-27219.83,0.000247,7]
[366330244,1750192244842,-8765.16046724,0.00024709,2]
[366330246,1750192244851,-5000.0,0.00024709,2]
[366330248,1750192244861,-5000.0,0.00024709,2]
[366330250,1750192244870,-927.7123517,0.00024767,2]
[366330252,1750192244879,-151.0,0.00024768,2]
[366330254,1750192244888,-151.0,0.00024768,2]
[366330256,1750192244898,-500.0,0.00024768,2]
[366330258,1750192244907,-151.0,0.00024768,2]
[366330260,1750192244916,-151.0,0.00024768,2]
[366330262,1750192244926,-151.0,0.00024768,2]
[366330264,1750192244935,-151.0,0.00024768,2]
[366330266,1750192244944,-151.0,0.00024768,2]
[366330268,1750192244953,-259.70467247,0.00024768,2]
[366330270,1750192244963,-151.0,0.00024768,2]
[366330272,1750192244972,-151.0,0.00024768,2]
[366330274,1750192244981,-245.0,0.00024768,2]
[366330276,1750192244990,-151.0,0.00024768,2]
[366330278,1750192244999,-245.0,0.00024768,2]
[366330280,1750192245009,-152.19137071,0.00024768,2]
[366330282,1750192245018,-159.78301553,0.00024768,2]
[366330283,1750192245027,-152.41493749,0.00024768,2]
[366330285,1750192245036,-209.3569613,0.00024768,2]
[366330287,1750192245044,-500.0,0.00024768,2]
[366330290,1750192245055,-151.0,0.00024795,2]
[366330292,1750192245065,-151.0,0.00024795,2]
[366330294,1750192245074,-500.0,0.00024795,2]
[366330295,1750192245084,-151.0,0.00024795,2]
[366330298,1750192245093,-198.83854736,0.00024795,2]
[366330300,1750192245104,-151.0,0.00024795,2]
[366330301,1750192245113,-151.0,0.00024795,2]
[366330303,1750192245122,-151.0,0.00024795,2]
[366330305,1750192245132,-151.0,0.00024795,2]
[366330307,1750192245141,-500.0,0.00024795,2]
[366330309,1750192245150,-212.59418256,0.00024797,11]
[366330311,1750192245159,-357.19,0.000248,31]
[366330313,1750192245169,-357.19,0.000248,31]
[366330315,1750192245178,-357.19,0.000248,31]
[366330317,1750192245188,-357.19,0.000248,31]
[366330319,1750192245197,-357.19,0.000248,31]
[366330321,1750192245206,-357.19,0.000248,31]
[366330323,1750192245215,-357.19,0.000248,31]
[366330325,1750192245224,-357.19,0.000248,31]
[366330327,1750192245233,-357.19,0.000248,31]
[366330329,1750192245242,-357.19,0.000248,31]
[366330331,1750192245252,-357.19,0.000248,31]
[366330333,1750192245261,-357.19,0.000248,31]
[366330335,1750192245271,-357.19,0.000248,31]
[366330337,1750192245280,-357.19,0.000248,31]
[366330339,1750192245289,-357.19,0.000248,31]
[366330341,1750192245298,-357.19,0.000248,31]
[366330343,1750192245307,-215.0738,0.00024802,2]
[366330345,1750192245317,-269.52602619,0.00024817,2]
[366330347,1750192245326,-198.0,0.00024823,2]
[366330349,1750192245335,-210.4705419,0.00024823,2]
[366330351,1750192245345,-299.394,0.00024823,2]
[366330353,1750192245355,-151.0,0.00024823,2]
[366330355,1750192245364,-198.0,0.00024823,2]
[366330357,1750192245374,-199.18673417,0.00024823,2]
[366330359,1750192245383,-200.52148124,0.00024823,2]
[366330361,1750192245392,-198.0,0.00024823,2]
[366330363,1750192245402,-624.03443289,0.00024823,2]
[366330365,1750192245411,-151.0,0.00024836,7]
[366330367,1750192245421,-151.0,0.0002485,2]
[366330369,1750192245430,-1500.0,0.00024868,2]
[366330371,1750192245440,-1500.0,0.00024868,2]
[366330373,1750192245449,-202.18515436,0.00024873,2]
[366330375,1750192245458,-500.0,0.00024873,2]
[366330377,1750192245468,-151.0,0.00024878,2]
[366330379,1750192245477,-800.0,0.00024888,2]
[366330381,1750192245487,-558.14,0.00024893,2]
[366330383,1750192245496,-2000.0,0.000249,2]
[366330385,1750192245504,-2000.0,0.000249,2]
[366330387,1750192245514,-672.03,0.000249,7]
[366330389,1750192245523,-988.22892679,0.000249,2]
[366330391,1750192245532,-216.63702806,0.00024905,2]
[366330393,1750192245541,-200.0,0.0002491,12]
[366330395,1750192245551,-900.0,0.00024913,2]
[366330397,1750192245560,-988.22892674,0.00024919,2]
[366330399,1750192245569,-169.95627862,0.00024925,2]
[366330401,1750192245578,-212.59418256,0.00024934,12]
[366330403,1750192245587,-988.22892674,0.00024937,2]
[366330405,1750192245596,-988.22892674,0.00024956,2]
[366330407,1750192245605,-500.0,0.00024973,2]
[366330409,1750192245615,-500.0,0.00024973,2]
[366330411,1750192245625,-150.0,0.00024973,2]
[366330414,1750192245634,-988.22892674,0.00024975,2]
[366330417,1750192245643,-500.0,0.00024987,2]
[366330420,1750192245653,-13828.01789103,0.0002499,30]
[366330423,1750192245663,-988.22892674,0.00024993,2]
[366330426,1750192245673,-1030.96,0.00024999,6]
[366330428,1750192245684,-460.0,0.00024999,6]
[366330431,1750192245693,-7032.06260353,0.00025,2]
[366330433,1750192245703,-17130.90730682,0.00025,2]
[366330435,1750192245712,-6750.48999672,0.00025,30]
[366330453,1750192245877,-282.36,0.00024088,2]
[366330455,1750192245888,-370.64,0.00024088,2]
[366330457,1750192245897,-106359.45638205,0.00025,30]
[366330571,1750192247012,-6053.132607,0.00025,30]
[366330583,1750192247118,-460.0,0.00021917,6]
[366330585,1750192247128,-460.0,0.00022027,6]
[366330587,1750192247138,-530.62751808,0.00025,30]
[366330852,1750192545962,238.366957,0.00013699,2]
[366330871,1750193239418,-202.52583614,0.00019886,2]
[366330872,1750193254092,-1615.20038243,0.00019886,2]
[366330874,1750193315112,-179.68401746,0.000189,2]
[366330875,1750193322724,-150.0,0.000189,2]
[366330876,1750193352076,-3182.27378143,0.00019886,2]
[366330877,1750193352098,-238.366957,0.00020187,2]
[366330878,1750193352120,-180.556161,0.0002058,2]
[366330879,1750193352140,-173.2554744,0.00020615,2]
[366330880,1750193352162,-500.0,0.00021164,2]
[366330881,1750193372089,-4002.86194588,0.00021597,2]
[366330907,1750193432267,-997.13805412,0.00021597,2]
[366330909,1750193432277,-192.25450417,0.00021616,2]
[366330911,1750193432287,-164.80487161,0.00021716,2]
[366330913,1750193432296,-192.25450416,0.00021716,2]
[366330915,1750193432305,-6495.46663,0.00021816,2]
[366330918,1750193432321,-3099.94183748,0.00021816,2]
[366330983,1750193438261,-5000.0,0.00021598,2]
[366330985,1750193438271,-16494.95984778,0.00021816,2]
[366330987,1750193438282,-160.299,0.00021816,2]
[366330989,1750193438292,-300.0,0.00021816,2]
[366330990,1750193438302,-266.06462162,0.000219,6]
[366330992,1750193438312,-243.2297835,0.00021916,2]
[366330994,1750193438321,-500.0,0.00021916,2]
[366330996,1750193438331,-500.0,0.00021916,2]
[366330998,1750193438341,-220.56860193,0.00021916,2]
[366331000,1750193438350,-500.0,0.00021916,2]
[366331003,1750193438360,-460.0,0.00021917,6]
[366331006,1750193438370,-590.95651065,0.00021917,6]
[366331008,1750193438380,-440.0,0.00021917,6]
[366331011,1750193438390,-460.0,0.00021917,6]
[366331014,1750193438400,-460.0,0.00021917,6]
[366331017,1750193438410,-416.63812256,0.00021917,6]
[366331020,1750193438419,-400.3809932,0.00021917,6]
[366331023,1750193438429,-422.71679719,0.00021917,6]
[366331026,1750193438439,-284.62934788,0.00021917,6]
[366331028,1750193438448,-342.32390117,0.00021917,6]
[366331030,1750193438458,-500.0,0.00021917,2]
[366331032,1750193438467,-277.9308021,0.00021917,6]
[366331033,1750193438477,-460.0,0.00021917,6]
[366331034,1750193438486,-420.0,0.00021917,6]
[366331035,1750193438496,-440.0,0.00021917,6]
[366331036,1750193438505,-460.0,0.00021917,6]
[366331038,1750193438515,-460.0,0.00021917,6]
[366331040,1750193438524,-391.40575744,0.00021917,6]
[366331042,1750193438533,-460.0,0.00021917,6]
[366331043,1750193438543,-400.0,0.00021917,6]
[366331044,1750193438553,-460.0,0.00021917,6]
[366331045,1750193438563,-460.0,0.00021917,6]
[366331046,1750193438573,-400.0,0.00021917,6]
[366331047,1750193438582,-460.0,0.00021917,6]
[366331048,1750193438592,-362.67034022,0.00021917,6]
[366331049,1750193438602,-460.0,0.00021917,6]
[366331050,1750193438611,-460.0,0.00021917,6]
[366331051,1750193438621,-460.0,0.00021917,6]
[366331052,1750193438631,-193.29837282,0.00021917,6]
[366331053,1750193438640,-460.0,0.00021917,6]
[366331054,1750193438650,-460.0,0.00021917,6]
[366331055,1750193438659,-370.0,0.00021917,6]
[366331056,1750193438674,-460.0,0.00021917,6]
[366331057,1750193438684,-460.0,0.00021917,6]
[366331058,1750193438694,-460.0,0.00021917,6]
[366331059,1750193438703,-151.0,0.00021917,6]
[366331060,1750193438713,-151.0,0.00021917,6]
[366331061,1750193438722,-259.70467247,0.00021917,6]
[366331062,1750193438732,-151.0,0.00021917,6]
[366331063,1750193438742,-547.3,0.00021917,6]
[366331064,1750193438752,-460.0,0.00021917,6]
[366331065,1750193438762,-460.0,0.00021917,6]
[366331066,1750193438771,-460.0,0.00021917,6]
[366331067,1750193438781,-410.0,0.00021917,6]
[366331068,1750193438790,-439.19025681,0.00021917,6]
[366331069,1750193438799,-460.0,0.00021917,6]
[366331070,1750193438809,-1000.0,0.00021917,6]
[366331071,1750193438819,-400.0,0.00021917,6]
[366331072,1750193438828,-151.0,0.00021917,6]
[366331073,1750193438838,-151.0,0.00021917,6]
[366331074,1750193438847,-460.0,0.00021917,6]
[366331075,1750193438857,-336.80177257,0.00021917,6]
[366331076,1750193438866,-397.25445038,0.00021917,6]
[366331077,1750193438876,-460.0,0.00021917,6]
[366331078,1750193438886,-410.0,0.00021917,6]
[366331079,1750193438895,-460.0,0.00021917,6]
[366331080,1750193438905,-460.0,0.00021917,6]
[366331081,1750193438915,-460.0,0.00021917,6]
[366331082,1750193438925,-460.0,0.00021917,6]
[366331083,1750193438934,-460.0,0.00021917,6]
[366331084,1750193438944,-460.0,0.00021917,6]
[366331085,1750193438953,-310.0,0.00021917,6]
[366331086,1750193438963,-405.88529134,0.00021917,6]
[366331087,1750193438973,-460.0,0.00021917,6]
[366331088,1750193438983,-460.0,0.00021917,6]
[366331089,1750193438993,-162.48663862,0.00021917,6]
[366331090,1750193439004,-151.0,0.00021917,6]
[366331091,1750193439013,-430.0,0.00021917,6]
[366331092,1750193439023,-151.0,0.00021917,2]
[366331093,1750193439032,-151.0,0.00021917,2]
[366331094,1750193439042,-460.0,0.00021917,6]
[366331095,1750193439051,-460.0,0.00021917,6]
[366331096,1750193439060,-500.0,0.00021917,6]
[366331097,1750193439070,-500.0,0.00021917,6]
[366331098,1750193439080,-500.0,0.00021917,6]
[366331099,1750193439089,-500.0,0.00021917,6]
[366331100,1750193439098,-500.0,0.00021917,6]
[366331101,1750193439107,-460.0,0.00021917,6]
[366331102,1750193439117,-460.0,0.00021917,6]
[366331103,1750193439126,-460.0,0.00021917,6]
[366331104,1750193439140,-460.0,0.00021917,6]
[366331105,1750193439150,-431.01332932,0.00021917,6]
[366331106,1750193439159,-409.23312429,0.00021917,6]
[366331107,1750193439169,-460.0,0.00021917,6]
[366331108,1750193439179,-532.08,0.00021917,6]
[366331109,1750193439188,-460.0,0.00021917,6]
[366331110,1750193439198,-460.0,0.00021917,6]
[366331111,1750193439209,-460.0,0.00021917,6]
[366331112,1750193439220,-460.0,0.00021917,6]
[366331113,1750193439230,-460.0,0.00021917,6]
[366331114,1750193439240,-460.0,0.00021917,6]
[366331115,1750193439249,-460.0,0.00021917,6]
[366331116,1750193439259,-566.14,0.00021917,6]
[366331117,1750193439269,-436.34797716,0.00021917,6]
[366331118,1750193439280,-172.83495075,0.00021917,6]
[366331119,1750193439290,-460.0,0.00021917,6]
[366331120,1750193439300,-460.0,0.00021917,6]
[366331121,1750193439310,-400.23941881,0.00021917,6]
[366331122,1750193439320,-683.81,0.00021917,6]
[366331123,1750193439329,-460.0,0.00021917,6]
[366331124,1750193439340,-460.0,0.00021917,6]
[366331125,1750193439350,-866.87,0.00021917,6]
[366331126,1750193439360,-460.0,0.00021917,6]
[366331127,1750193439370,-460.0,0.00021917,6]
[366331128,1750193439380,-460.0,0.00021917,6]
[366331129,1750193439391,-460.0,0.00021917,6]
[366331130,1750193439401,-460.0,0.00021917,6]
[366331131,1750193439411,-152.19137071,0.00021917,6]
[366331132,1750193439420,-159.78301553,0.00021917,6]
[366331133,1750193439430,-290.70606065,0.00021917,6]
[366331134,1750193439439,-152.43938122,0.00021917,6]
[366331135,1750193439449,-152.41493749,0.00021917,6]
[366331136,1750193439459,-209.3569613,0.00021917,6]
[366331137,1750193439468,-460.0,0.00021917,6]
[366331138,1750193439479,-500.0,0.00021917,6]
[366331139,1750193439487,-460.0,0.00021917,6]
[366331140,1750193439497,-460.0,0.00021917,6]
[366331141,1750193439507,-245.0,0.00021917,6]
[366331142,1750193439516,-460.0,0.00021917,6]
[366331143,1750193439525,-151.0,0.00021917,6]
[366331144,1750193439536,-460.0,0.00021917,6]
[366331145,1750193439545,-245.0,0.00021917,6]
[366331146,1750193439555,-350.0,0.00021917,6]